[Event "FTX Crypto Cup Prelims 2021"]
[Site "Chess24"]
[Date "2021.05.18"]
[Round "11.8"]
[White "Carlsen, Magnus"]
[Black "Nakamura, Hikaru"]
[Result "1/2-1/2"]
[ECO "C54"]
[WhiteElo "2881"]
[BlackElo "2829"]
[Annotator "RC"]
[PlyCount "102"]
[EventDate "2021.05.23"]
[EventType "tourn"]
[EventCountry "NET"]
[Tiebreak "Koya+Number of black wins+Number of wins"]
[SourceTitle "playchess.com"]
[Source "ChessBase"]
[SourceQuality "1"]
[TimeControl "900+10"]

1. e4 {[%emt 0:00:00]} e5 {[%emt 0:00:00]} 2. Nf3 {[%emt 0:00:00]} Nc6 {
[%emt 0:00:00]} 3. Bc4 {[%emt 0:00:00]} Bc5 {[%emt 0:00:00]} 4. c3 {[%emt 0:00:
00]} Nf6 {[%emt 0:00:00]} 5. d3 {[%emt 0:00:00]} O-O {[%emt 0:00:00]} 6. Nbd2 {
[%emt 0:00:00]} d5 {[%emt 0:00:09]} 7. exd5 {[%emt 0:00:00]} Nxd5 {[%emt 0:00:
00]} 8. Ne4 {[%emt 0:00:01]} Be7 {[%emt 0:00:05]} 9. O-O {[%emt 0:00:02]} Nb6 {
[%emt 0:01:07]} 10. Bb3 {[%emt 0:00:02]} Bf5 {[%emt 0:00:32]} 11. a4 {[%emt 0:
00:45]} a5 {[%emt 0:00:33]} 12. Be3 {[%emt 0:00:20]} Kh8 {[%emt 0:01:53]} 13.
Re1 {[%emt 0:03:18]} Bg6 {[%emt 0:00:05]} 14. Ng3 {[%emt 0:04:07]} Nd7 {
[%emt 0:00:59]} 15. d4 {[%emt 0:02:13]} f5 {[%emt 0:02:31]} 16. d5 {[%emt 0:01:
32]} Ncb8 {[%emt 0:00:03]} 17. Bc1 {[%emt 0:00:45]} f4 {[%emt 0:02:20]} 18. Ne4
{[%emt 0:00:16]} Na6 {[%emt 0:00:12]} 19. Bc2 {[%emt 0:00:23]} Re8 {[%emt 0:01:
44]} 20. b3 {[%emt 0:01:18]} Bf6 {[%emt 0:01:49]} 21. Ba3 {[%emt 0:00:18]} Nb6
{[%emt 0:00:47]} 22. d6 {[%emt 0:00:09]} c6 {[%emt 0:00:18]} 23. Qe2 {[%emt 0:
00:30]} Nd7 {[%emt 0:00:42]} 24. Rad1 {[%emt 0:00:08]} Bh5 {[%emt 0:00:17]} 25.
b4 {[%emt 0:00:32]} axb4 {[%emt 0:00:43]} 26. cxb4 {[%emt 0:00:00]} Qb6 {
[%emt 0:00:33]} 27. b5 {[%emt 0:00:38]} cxb5 {[%emt 0:00:14]} 28. axb5 {
[%emt 0:00:07]} Nab8 {[%emt 0:00:14]} 29. Bb4 {[%emt 0:00:04]} Nf8 {[%emt 0:00:
21]} 30. Nc3 {[%emt 0:00:27]} Qd8 {[%emt 0:00:15]} 31. Nd5 {[%emt 0:00:07]} Ra2
{[%emt 0:00:15]} 32. Qc4 {[%emt 0:00:13]} Rxc2 {[%emt 0:00:27]} 33. Qxc2 {
[%emt 0:00:03]} Bxf3 {[%emt 0:00:06]} 34. gxf3 {[%emt 0:00:02]} Qd7 {[%emt 0:
00:00]} 35. Nc7 {[%emt 0:01:16]} Rd8 {[%emt 0:00:11]} 36. Qc4 {[%emt 0:00:17]}
Qh3 {[%emt 0:00:08]} 37. Rd3 {[%emt 0:00:17]} Nbd7 {[%emt 0:00:18]} 38. Qf7 {
[%emt 0:00:21]} Bh4 {[%emt 0:00:32]} 39. Re2 {[%emt 0:00:18]} Nf6 {[%emt 0:00:
16]} 40. Bc3 {[%emt 0:00:29]} Qf5 {[%emt 0:00:43]} 41. Rd1 {[%emt 0:00:13]} Qh3
{[%emt 0:00:01]} 42. Rd3 {[%emt 0:00:08]} Qf5 {[%emt 0:00:01]} 43. Red2 {
[%emt 0:00:01]} e4 {[%emt 0:00:06]} 44. Bxf6 {[%emt 0:00:01]} Bxf6 {[%emt 0:00:
01]} 45. Rd5 {[%emt 0:00:27]} Qc8 {[%emt 0:00:01]} 46. b6 {[%emt 0:00:11]} e3 {
[%emt 0:00:10]} 47. d7 {[%emt 0:00:01]} Nxd7 {[%emt 0:00:02]} 48. Rd1 {[%emt 0:
00:10]} e2 {[%emt 0:00:06]} 49. Re1 {[%emt 0:00:01]} Ne5 {[%emt 0:00:06]} 50.
Rxe5 {[%emt 0:00:05]} Bxe5 {[%emt 0:00:03]} 51. Kg2 {[%emt 0:00:23]} Rf8 {
[%emt 0:00:54]} 1/2-1/2

[Event "FTX Crypto Cup Prelims 2021"]
[Site "Chess24"]
[Date "2021.05.18"]
[Round "13.3"]
[White "Giri, Anish"]
[Black "Nepomniachtchi, Ian"]
[Result "1/2-1/2"]
[ECO "D85"]
[WhiteElo "2731"]
[BlackElo "2778"]
[Annotator "ChessBase"]
[PlyCount "72"]
[EventDate "2021.05.23"]
[EventType "tourn"]
[EventCountry "NET"]
[Tiebreak "Koya+Number of black wins+Number of wins"]
[SourceTitle "playchess.com"]
[Source "ChessBase"]
[SourceQuality "1"]
[TimeControl "900+10"]

1. d4 {[%emt 0:00:00]} Nf6 {[%emt 0:00:00]} 2. c4 {[%emt 0:00:00]} g6 {[%emt 0:
00:00]} 3. Nc3 {[%emt 0:00:00]} d5 {[%emt 0:00:00]} 4. cxd5 {[%emt 0:00:00]}
Nxd5 {[%emt 0:00:00]} 5. e4 {[%emt 0:00:00]} Nxc3 {[%emt 0:00:00]} 6. bxc3 {
[%emt 0:00:00]} Bg7 {[%emt 0:00:00]} 7. Nf3 {[%emt 0:00:00]} c5 {[%emt 0:00:00]
} 8. Rb1 {[%emt 0:00:00]} O-O {[%emt 0:00:07]} 9. Be2 {[%emt 0:00:00]} Nc6 {
[%emt 0:00:10]} 10. d5 {[%emt 0:00:03]} Ne5 {[%emt 0:00:04]} 11. Nxe5 {[%emt 0:
00:05]} Bxe5 {[%emt 0:00:00]} 12. Qd2 {[%emt 0:00:06]} Qa5 {[%emt 0:00:23]} 13.
Rb3 {[%emt 0:00:52]} e6 {[%emt 0:02:37]} 14. f4 {[%emt 0:00:15]} Bg7 {[%emt 0:
00:15]} 15. c4 {[%emt 0:00:09]} Qd8 {[%emt 0:00:15]} 16. Bb2 {[%emt 0:00:36]}
Bxb2 {[%emt 0:00:10]} 17. Rxb2 {[%emt 0:00:05]} e5 {[%emt 0:00:20]} 18. O-O {
[%emt 0:01:10]} Qd6 {[%emt 0:00:02]} 19. f5 {[%emt 0:00:17]} gxf5 {[%emt 0:01:
25]} 20. exf5 {[%emt 0:00:02]} f6 {[%emt 0:00:01]} 21. Rb3 {[%emt 0:01:26]} Bd7
{[%emt 0:00:30]} 22. Qh6 {[%emt 0:00:20]} Rf7 {[%emt 0:00:35]} 23. Rxb7 {
[%emt 0:00:44]} Rg7 {[%emt 0:00:27]} 24. Bf3 {[%emt 0:01:05]} Kh8 {[%emt 0:00:
12]} 25. Be4 {[%emt 0:00:05]} Rag8 {[%emt 0:00:37]} 26. Rxa7 {[%emt 0:02:14]}
Qb6 {[%emt 0:00:03]} 27. Ra3 {[%emt 0:00:03]} Qb2 {[%emt 0:00:05]} 28. Rg3 {
[%emt 0:00:07]} Qd4+ {[%emt 0:00:06]} 29. Kh1 {[%emt 0:02:28]} Qxe4 {[%emt 0:
00:47]} 30. Qxf6 {[%emt 0:00:04]} Qxc4 {[%emt 0:00:04]} 31. Rb1 {[%emt 0:00:05]
} Be8 {[%emt 0:01:08]} 32. Rxg7 {[%emt 0:00:06]} Rxg7 {[%emt 0:00:02]} 33. Qf8+
{[%emt 0:00:03]} Rg8 {[%emt 0:00:01]} 34. Qf6+ {[%emt 0:00:01]} Rg7 {[%emt 0:
00:00]} 35. Qf8+ {[%emt 0:00:00]} Rg8 {[%emt 0:00:01]} 36. Qf6+ {[%emt 0:00:01]
} Rg7 {[%emt 0:00:00]} 1/2-1/2

[Event "FTX Crypto Cup Prelims 2021"]
[Site "Chess24"]
[Date "2021.05.18"]
[Round "13.4"]
[White "Ding, Liren"]
[Black "Mamedyarov, Shakhriyar"]
[Result "1/2-1/2"]
[ECO "E01"]
[WhiteElo "2836"]
[BlackElo "2761"]
[Annotator "ChessBase"]
[PlyCount "125"]
[EventDate "2021.05.23"]
[EventType "tourn"]
[EventCountry "NET"]
[Tiebreak "Koya+Number of black wins+Number of wins"]
[SourceTitle "playchess.com"]
[Source "ChessBase"]
[SourceQuality "1"]
[TimeControl "900+10"]

1. d4 {[%emt 0:00:00]} Nf6 {[%emt 0:00:00]} 2. c4 {[%emt 0:00:00]} e6 {[%emt 0:
00:00]} 3. g3 {[%emt 0:00:02]} d5 {[%emt 0:00:00]} 4. Bg2 {[%emt 0:00:00]} Bb4+
{[%emt 0:00:01]} 5. Bd2 {[%emt 0:00:02]} Bd6 {[%emt 0:00:21]} 6. Nf3 {[%emt 0:
00:11]} O-O {[%emt 0:00:02]} 7. O-O {[%emt 0:00:37]} dxc4 {[%emt 0:00:20]} 8.
Qc2 {[%emt 0:00:29]} Nc6 {[%emt 0:00:04]} 9. Rd1 {[%emt 0:00:55]} Re8 {[%emt 0:
02:18]} 10. Qxc4 {[%emt 0:02:44]} e5 {[%emt 0:00:03]} 11. d5 {[%emt 0:00:06]}
Nd4 {[%emt 0:00:04]} 12. Nc3 {[%emt 0:00:35]} Nxf3+ {[%emt 0:00:50]} 13. Bxf3 {
[%emt 0:00:00]} a6 {[%emt 0:00:02]} 14. a4 {[%emt 0:00:44]} Rb8 {[%emt 0:02:19]
} 15. e4 {[%emt 0:00:06]} Qe7 {[%emt 0:00:39]} 16. Qe2 {[%emt 0:00:36]} Bd7 {
[%emt 0:00:37]} 17. Bg5 {[%emt 0:01:52]} h6 {[%emt 0:00:10]} 18. Bxf6 {[%emt 0:
00:01]} Qxf6 {[%emt 0:00:01]} 19. Bg4 {[%emt 0:00:00]} Bxg4 {[%emt 0:00:10]}
20. Qxg4 {[%emt 0:00:01]} Bc5 {[%emt 0:00:29]} 21. Rd2 {[%emt 0:01:52]} c6 {
[%emt 0:00:06]} 22. Kg2 {[%emt 0:00:21]} Bd4 {[%emt 0:01:02]} 23. Qf3 {[%emt 0:
00:02]} Qxf3+ {[%emt 0:01:34]} 24. Kxf3 {[%emt 0:00:00]} Bxc3 {[%emt 0:00:11]}
25. bxc3 {[%emt 0:00:02]} cxd5 {[%emt 0:00:03]} 26. Rxd5 {[%emt 0:00:03]} Rbc8
{[%emt 0:00:05]} 27. Ra3 {[%emt 0:00:04]} Rc7 {[%emt 0:00:13]} 28. Ke3 {
[%emt 0:00:01]} f6 {[%emt 0:00:05]} 29. Rb3 {[%emt 0:00:11]} Kf7 {[%emt 0:00:
19]} 30. Kd3 {[%emt 0:00:02]} Rec8 {[%emt 0:00:46]} 31. c4 {[%emt 0:00:20]}
Rxc4 {[%emt 0:01:27]} 32. Rxb7+ {[%emt 0:00:03]} Kg6 {[%emt 0:00:02]} 33. Rdd7
{[%emt 0:00:01]} Rc2 {[%emt 0:01:13]} 34. Rxg7+ {[%emt 0:00:58]} Kh5 {[%emt 0:
00:03]} 35. Rb3 {[%emt 0:00:00]} Rxf2 {[%emt 0:00:05]} 36. Rb6 {[%emt 0:01:35]}
Rfc2 {[%emt 0:00:07]} 37. Rb3 {[%emt 0:00:02]} Rxh2 {[%emt 0:00:30]} 38. Rb1 {
[%emt 0:00:14]} Rcc2 {[%emt 0:01:28]} 39. Rf1 {[%emt 0:00:10]} Rcf2 {[%emt 0:
00:42]} 40. Rxf2 {[%emt 0:00:05]} Rxf2 {[%emt 0:00:02]} 41. a5 {[%emt 0:04:19]}
Ra2 {[%emt 0:02:13]} 42. g4+ {[%emt 0:00:04]} Kh4 {[%emt 0:00:03]} 43. Rg6 {
[%emt 0:00:00]} Ra3+ {[%emt 0:01:04]} 44. Ke2 {[%emt 0:00:01]} Ra2+ {[%emt 0:
00:08]} 45. Kf3 {[%emt 0:00:07]} Ra3+ {[%emt 0:00:01]} 46. Ke2 {[%emt 0:00:00]}
Rxa5 {[%emt 0:00:18]} 47. Rxf6 {[%emt 0:00:04]} Kg5 {[%emt 0:00:01]} 48. Re6 {
[%emt 0:00:06]} Ra2+ {[%emt 0:00:17]} 49. Kd3 {[%emt 0:00:22]} Ra3+ {[%emt 0:
00:02]} 50. Kc4 {[%emt 0:01:06]} Kf4 {[%emt 0:00:22]} 51. Rxh6 {[%emt 0:00:46]}
Kxe4 {[%emt 0:00:01]} 52. Rh8 {[%emt 0:00:46]} Kf4 {[%emt 0:00:25]} 53. Rg8 {
[%emt 0:00:24]} e4 {[%emt 0:00:09]} 54. g5 {[%emt 0:00:01]} e3 {[%emt 0:00:07]}
55. g6 {[%emt 0:00:04]} Kg5 {[%emt 0:00:08]} 56. g7 {[%emt 0:00:08]} Kg6 {
[%emt 0:00:02]} 57. Re8 {[%emt 0:00:17]} Kxg7 {[%emt 0:00:02]} 58. Kb4 {
[%emt 0:00:00]} Kf7 {[%emt 0:00:03]} 59. Re4 {[%emt 0:00:06]} Rd3 {[%emt 0:00:
03]} 60. Kc4 {[%emt 0:00:01]} Ra3 {[%emt 0:00:01]} 61. Kb4 {[%emt 0:00:01]} Rd3
{[%emt 0:00:01]} 62. Kc4 {[%emt 0:00:01]} Ra3 {[%emt 0:00:01]} 63. Kb4 {
[%emt 0:00:01]} 1/2-1/2

[Event "FTX Crypto Cup Prelims 2021"]
[Site "Chess24"]
[Date "2021.05.18"]
[Round "13.6"]
[White "Dubov, Daniil"]
[Black "Caruana, Fabiano"]
[Result "0-1"]
[ECO "B48"]
[WhiteElo "2770"]
[BlackElo "2773"]
[Annotator "ChessBase"]
[PlyCount "70"]
[EventDate "2021.05.23"]
[EventType "tourn"]
[EventCountry "NET"]
[Tiebreak "Koya+Number of black wins+Number of wins"]
[SourceTitle "playchess.com"]
[Source "ChessBase"]
[SourceQuality "1"]
[TimeControl "900+10"]

1. e4 {[%emt 0:00:00]} c5 {[%emt 0:00:00]} 2. Nf3 {[%emt 0:00:00]} e6 {[%emt 0:
00:00]} 3. d4 {[%emt 0:00:01]} cxd4 {[%emt 0:00:00]} 4. Nxd4 {[%emt 0:00:00]}
Nc6 {[%emt 0:00:00]} 5. Nc3 {[%emt 0:00:16]} Qc7 {[%emt 0:00:00]} 6. Be3 {
[%emt 0:00:25]} a6 {[%emt 0:00:00]} 7. f4 {[%emt 0:00:34]} b5 {[%emt 0:00:10]}
8. e5 {[%emt 0:00:07]} Bb7 {[%emt 0:00:12]} 9. Be2 {[%emt 0:00:50]} Nxd4 {
[%emt 0:00:16]} 10. Bxd4 {[%emt 0:00:26]} Nh6 {[%emt 0:01:02]} 11. Bf3 {
[%emt 0:00:33]} Nf5 {[%emt 0:00:04]} 12. Bf2 {[%emt 0:00:11]} Bb4 {[%emt 0:00:
34]} 13. O-O {[%emt 0:00:24]} Bxc3 {[%emt 0:00:04]} 14. bxc3 {[%emt 0:00:09]}
O-O {[%emt 0:00:02]} 15. Bxb7 {[%emt 0:00:39]} Qxb7 {[%emt 0:00:02]} 16. a4 {
[%emt 0:00:03]} Qc6 {[%emt 0:00:19]} 17. axb5 {[%emt 0:01:34]} axb5 {[%emt 0:
00:03]} 18. Qd3 {[%emt 0:00:08]} Ra4 {[%emt 0:00:54]} 19. Rxa4 {[%emt 0:00:25]}
bxa4 {[%emt 0:00:03]} 20. c4 {[%emt 0:00:00]} h5 {[%emt 0:00:18]} 21. c5 {
[%emt 0:01:01]} Rb8 {[%emt 0:00:21]} 22. Rd1 {[%emt 0:00:57]} Ra8 {[%emt 0:05:
14]} 23. Ra1 {[%emt 0:02:00]} Ne7 {[%emt 0:00:26]} 24. h3 {[%emt 0:01:27]} Qd5
{[%emt 0:00:21]} 25. Qe2 {[%emt 0:02:30]} a3 {[%emt 0:00:40]} 26. c4 {[%emt 0:
00:34]} Qb7 {[%emt 0:00:06]} 27. Qxh5 {[%emt 0:00:50]} Qb2 {[%emt 0:02:08]} 28.
Qd1 {[%emt 0:00:12]} Nc6 {[%emt 0:01:06]} 29. h4 {[%emt 0:01:44]} a2 {[%emt 0:
00:17]} 30. h5 {[%emt 0:00:04]} Rb8 {[%emt 0:00:31]} 31. Be1 {[%emt 0:00:17]}
Qb1 {[%emt 0:01:05]} 32. Bc3 {[%emt 0:00:04]} Qxd1+ {[%emt 0:00:01]} 33. Rxd1 {
[%emt 0:00:02]} Rb1 {[%emt 0:00:02]} 34. Rf1 {[%emt 0:00:02]} Nb4 {[%emt 0:00:
11]} 35. g4 {[%emt 0:00:47]} Nd3 {[%emt 0:00:30]} 0-1

[Event "FTX Crypto Cup Prelims 2021"]
[Site "Chess24"]
[Date "2021.05.18"]
[Round "14.4"]
[White "Radjabov, Teimour"]
[Black "Dubov, Daniil"]
[Result "1/2-1/2"]
[ECO "D85"]
[WhiteElo "2758"]
[BlackElo "2770"]
[Annotator "ChessBase"]
[PlyCount "47"]
[EventDate "2021.05.23"]
[EventType "tourn"]
[EventCountry "NET"]
[Tiebreak "Koya+Number of black wins+Number of wins"]
[SourceTitle "playchess.com"]
[Source "ChessBase"]
[SourceQuality "1"]
[TimeControl "900+10"]

1. d4 {[%emt 0:00:00]} Nf6 {[%emt 0:00:00]} 2. c4 {[%emt 0:00:00]} g6 {[%emt 0:
00:00]} 3. Nc3 {[%emt 0:00:00]} d5 {[%emt 0:00:00]} 4. cxd5 {[%emt 0:00:00]}
Nxd5 {[%emt 0:00:00]} 5. e4 {[%emt 0:00:02]} Nxc3 {[%emt 0:00:00]} 6. bxc3 {
[%emt 0:00:01]} Bg7 {[%emt 0:00:00]} 7. Be3 {[%emt 0:00:36]} c5 {[%emt 0:00:00]
} 8. Nf3 {[%emt 0:00:32]} O-O {[%emt 0:00:22]} 9. Be2 {[%emt 0:00:45]} b6 {
[%emt 0:00:11]} 10. Rc1 {[%emt 0:00:24]} e6 {[%emt 0:00:22]} 11. O-O {[%emt 0:
00:52]} Bb7 {[%emt 0:00:10]} 12. dxc5 {[%emt 0:00:36]} Nd7 {[%emt 0:00:22]} 13.
cxb6 {[%emt 0:00:25]} axb6 {[%emt 0:00:18]} 14. Qc2 {[%emt 0:00:27]} Qc7 {
[%emt 0:00:10]} 15. Nd4 {[%emt 0:00:51]} Nc5 {[%emt 0:00:20]} 16. f3 {[%emt 0:
00:06]} Be5 {[%emt 0:00:29]} 17. h3 {[%emt 0:00:26]} Rfc8 {[%emt 0:00:16]} 18.
Rfd1 {[%emt 0:00:27]} Ra5 {[%emt 0:01:02]} 19. Rb1 {[%emt 0:01:15]} Rca8 {
[%emt 0:00:20]} 20. Rb2 {[%emt 0:00:57]} Na4 {[%emt 0:00:18]} 21. Rb3 {[%emt 0:
00:02]} Nc5 {[%emt 0:00:02]} 22. Rb2 {[%emt 0:00:00]} Na4 {[%emt 0:00:27]} 23.
Rb3 {[%emt 0:00:02]} Nc5 {[%emt 0:00:01]} 24. Rb2 {[%emt 0:00:00]} 1/2-1/2